[Event "Championnat d'Europe Rapide"]
[Date "2024.12.07"]
[White "Kilic, Eray"]
[Black "Sargissian, Gabriel"]
[WhiteElo "2459"]
[BlackElo "2628"]
[Round "6.7"]
[Result "1/2-1/2"]
[TimeControl "900+10"]

1. e4 {[%emt 00:00:02] [%clk 00:15:18]} e5 {[%emt 00:00:01] [%clk 00:15:18]} 2.
Nf3 {[%emt 00:00:05] [%clk 00:15:24]} Nc6 {[%emt 00:00:02] [%clk 00:15:26]} 3.
Nc3 {[%emt 00:00:14] [%clk 00:15:20]} Nf6 {[%emt 00:00:02] [%clk 00:15:34]} 4.
a3 {[%emt 00:00:02] [%clk 00:15:28]} d5 {[%emt 00:00:22] [%clk 00:15:22]} 5. Bb5
{[%emt 00:00:01] [%clk 00:15:36]} d4 {[%emt 00:01:12] [%clk 00:14:20]} 6. Ne2
{[%emt 00:00:01] [%clk 00:15:45]} Bd6 {[%emt 00:00:07] [%clk 00:14:23]} 7. Bxc6+
{[%emt 00:00:03] [%clk 00:15:52]} bxc6 {[%emt 00:00:02] [%clk 00:14:31]} 8. d3
{[%emt 00:00:01] [%clk 00:16:01]} O-O {[%emt 00:00:15] [%clk 00:14:26]} 9. O-O
{[%emt 00:00:04] [%clk 00:16:06]} Nh5 {[%emt 00:00:46] [%clk 00:13:51]} 10. Ng3
{[%emt 00:00:44] [%clk 00:15:32]} Nxg3 {[%emt 00:00:08] [%clk 00:13:52]} 11.
fxg3 {[%emt 00:00:03] [%clk 00:15:40]} f5 {[%emt 00:00:28] [%clk 00:13:34]} 12.
Qe2 {[%emt 00:01:12] [%clk 00:14:37]} Qe8 {[%emt 00:02:17] [%clk 00:11:28]} 13.
exf5 {[%emt 00:00:48] [%clk 00:13:59]} Bxf5 {[%emt 00:00:09] [%clk 00:11:29]}
14. Bd2 {[%emt 00:00:26] [%clk 00:13:42]} c5 {[%emt 00:03:09] [%clk 00:08:31]}
15. Rae1 {[%emt 00:01:10] [%clk 00:12:41]} Bg4 {[%emt 00:00:16] [%clk 00:08:26]}
16. Qe4 {[%emt 00:00:36] [%clk 00:12:15]} Bf5 {[%emt 00:02:51] [%clk 00:05:44]}
17. Qd5+ {[%emt 00:00:39] [%clk 00:11:46]} Be6 {[%emt 00:00:15] [%clk 00:05:40]}
18. Qe4 {[%emt 00:00:02] [%clk 00:11:53]} Bf5 {[%emt 00:00:09] [%clk 00:05:41]}
19. Qe2 {[%emt 00:00:46] [%clk 00:11:17]} Bg4 {[%emt 00:00:17] [%clk 00:05:34]}
20. b3 {[%emt 00:00:03] [%clk 00:11:24]} Bxf3 {[%emt 00:03:05] [%clk 00:02:39]}
21. Rxf3 {[%emt 00:00:02] [%clk 00:11:32]} Qg6 {[%emt 00:00:03] [%clk 00:02:47]}
22. Ref1 {[%emt 00:00:33] [%clk 00:11:09]} Rxf3 {[%emt 00:00:36] [%clk
00:02:21]} 23. Qxf3 {[%emt 00:00:02] [%clk 00:11:16]} Re8 {[%emt 00:00:17] [%clk
00:02:14]} 24. Qd5+ {[%emt 00:00:22] [%clk 00:11:04]} Kh8 {[%emt 00:00:39]} 25.
Ba5 {[%clk 00:10:57]} h6 {[%emt 00:00:25] [%clk 00:01:48]} 26. Qc6 {[%emt
00:00:27] [%clk 00:10:40]} Kh7 {[%emt 00:00:46] [%clk 00:01:12]} 27. Bxc7 {[%emt
00:00:36] [%clk 00:10:14]} Bxc7 {[%emt 00:00:01] [%clk 00:01:21]} 28. Qxc7
{[%emt 00:00:02] [%clk 00:10:22]} e4 {[%emt 00:00:01] [%clk 00:01:30]} 29. Qxc5
{[%emt 00:01:20] [%clk 00:09:12]} exd3 {[%emt 00:00:04] [%clk 00:01:36]} 30.
cxd3 {[%emt 00:00:02] [%clk 00:09:20]} Qxd3 {[%emt 00:00:03] [%clk 00:01:43]}
31. Qf5+ {[%emt 00:00:24] [%clk 00:09:06]} Qxf5 {[%emt 00:00:07] [%clk
00:01:45]} 32. Rxf5 {[%emt 00:00:02] [%clk 00:09:14]} Re3 {[%emt 00:00:35] [%clk
00:01:20]} 33. Rf3 {[%emt 00:00:10] [%clk 00:09:13]} Re2 {[%emt 00:00:45] [%clk
00:00:46]} 34. Rd3 {[%emt 00:00:28] [%clk 00:08:55]} Rb2 {[%emt 00:00:20] [%clk
00:00:34]} 35. b4 {[%emt 00:00:47] [%clk 00:08:21]} Ra2 {[%emt 00:00:01] [%clk
00:00:43]} 36. g4 {[%emt 00:00:53] [%clk 00:07:38]} Kg6 {[%emt 00:00:07] [%clk
00:00:46]} 37. h3 {[%emt 00:00:09] [%clk 00:07:38]} Kf6 {[%emt 00:00:06] [%clk
00:00:50]} 38. Rxd4 {[%emt 00:00:05] [%clk 00:07:43]} Rxa3 {[%emt 00:00:01]
[%clk 00:00:59]} 39. Rd6+ {[%emt 00:00:02] [%clk 00:07:52]} Kf7 {[%emt 00:00:15]
[%clk 00:00:54]} 40. Rd7+ {[%emt 00:00:02] [%clk 00:08:00]} Kg6 {[%emt 00:00:14]
[%clk 00:00:49]} 41. b5 {[%emt 00:00:11] [%clk 00:07:59]} a5 {[%emt 00:00:19]
[%clk 00:00:41]} 42. Ra7 {[%emt 00:00:42] [%clk 00:07:27]} a4 {[%emt 00:00:04]
[%clk 00:00:48]} 43. Kf2 {[%emt 00:00:13] [%clk 00:07:23]} Rb3 {[%emt 00:00:02]
[%clk 00:00:55]} 44. Rxa4 {[%emt 00:00:11] [%clk 00:07:22]} Rxb5 {[%emt
00:00:02] [%clk 00:01:04]} 45. Rf4 {[%emt 00:00:03] [%clk 00:07:28]} h5 {[%emt
00:00:25] [%clk 00:00:49]} 46. gxh5+ {[%emt 00:00:02] [%clk 00:07:36]} Rxh5
{[%emt 00:00:04] [%clk 00:00:56]} 47. h4 {[%emt 00:00:22] [%clk 00:07:23]} Ra5
{[%emt 00:00:03] [%clk 00:01:03]} 48. g4 {[%emt 00:00:02] [%clk 00:07:32]} Kh6
{[%emt 00:00:02] [%clk 00:01:10]} 49. Re4 {[%emt 00:00:06] [%clk 00:07:35]} Ra1
{[%emt 00:00:20] [%clk 00:01:02]} 50. Re6+ {[%emt 00:00:10] [%clk 00:07:35]} Kh7
{[%emt 00:00:04] [%clk 00:01:08]} 51. Kg3 {[%emt 00:00:02] [%clk 00:07:42]} Ra3+
{[%emt 00:00:21] [%clk 00:00:57]} 52. Kf4 {[%emt 00:00:13] [%clk 00:07:40]} Ra4+
{[%emt 00:00:01] [%clk 00:01:06]} 53. Kf5 {[%emt 00:00:35] [%clk 00:07:14]} Ra5+
{[%emt 00:00:02] [%clk 00:01:15]} 54. Re5 {[%emt 00:00:02] [%clk 00:07:22]} Ra6
{[%emt 00:00:15] [%clk 00:01:10]} 55. h5 {[%emt 00:00:04] [%clk 00:07:27]} Rf6+
{[%emt 00:00:06] [%clk 00:01:14]} 56. Kg5 {[%emt 00:00:11] [%clk 00:07:26]} Ra6
{[%emt 00:00:02] [%clk 00:01:23]} 57. Kf5 {[%emt 00:00:36] [%clk 00:07:00]} Rf6+
{[%emt 00:00:28] [%clk 00:01:05]} 58. Ke4 {[%clk 00:07:09]} Rf1 {[%emt 00:00:07]
[%clk 00:01:09]} 59. Rf5 {[%emt 00:00:26] [%clk 00:06:51]} Re1+ {[%emt 00:00:09]
[%clk 00:01:12]} 60. Kf4 {[%emt 00:00:01] [%clk 00:06:59]} Rf1+ {[%emt 00:00:10]
[%clk 00:01:11]} 61. Kg5 {[%emt 00:00:02] [%clk 00:07:07]} Ra1 {[%emt 00:00:02]
[%clk 00:01:19]} 62. Re5 {[%emt 00:00:22] [%clk 00:06:55]} Rb1 {[%emt 00:00:25]
[%clk 00:01:04]} 63. Re4 {[%emt 00:00:03] [%clk 00:07:02]} Ra1 {[%emt 00:00:14]
[%clk 00:01:01]} 64. Kf5 {[%emt 00:00:20]} Rf1+ {[%clk 00:01:03]} 65. Rf4 {[%emt
00:00:06] [%clk 00:07:03]} Ra1 {[%emt 00:00:16] [%clk 00:00:58]} 66. Kg5 {[%emt
00:00:36] [%clk 00:06:37]} Rb1 {[%emt 00:00:05] [%clk 00:01:04]} 67. Rf7 {[%emt
00:00:02] [%clk 00:06:43]} Kg8 {[%emt 00:00:08] [%clk 00:01:07]} 68. Re7 {[%emt
00:00:04] [%clk 00:06:48]} Kh7 {[%emt 00:00:04] [%clk 00:01:13]} 69. Rc7 {[%emt
00:00:37] [%clk 00:06:21]} Ra1 {[%emt 00:00:06] [%clk 00:01:18]} 70. Rd7 {[%emt
00:00:23] [%clk 00:06:08]} Rb1 {[%emt 00:00:03] [%clk 00:01:26]} 71. Kf5 {[%emt
00:00:02] [%clk 00:06:15]} Rf1+ {[%emt 00:00:03] [%clk 00:01:33]} 72. Ke6 {[%emt
00:00:12] [%clk 00:06:11]} Re1+ {[%emt 00:00:18] [%clk 00:01:26]} 73. Kf7 {[%emt
00:00:33] [%clk 00:05:48]} Rg1 {[%emt 00:00:08] [%clk 00:01:28]} 74. Rd4 {[%emt
00:00:06] [%clk 00:05:53]} Rf1+ {[%emt 00:00:02] [%clk 00:01:36]} 75. Ke7 {[%emt
00:00:14] [%clk 00:05:48]} g6 {[%emt 00:00:10] [%clk 00:01:36]} 76. hxg6 {[%emt
00:00:32] [%clk 00:05:25]} Kxg6 {[%emt 00:00:02] [%clk 00:01:45]} 77. Rd5 {[%emt
00:00:01] [%clk 00:05:35]} Rf4 {[%emt 00:00:06] [%clk 00:01:49]} 78. g5 {[%emt
00:00:02] [%clk 00:05:43]} Rg4 {[%emt 00:00:02] [%clk 00:01:57]} 79. Ke6 {[%emt
00:00:02] [%clk 00:05:51]} Rxg5 {[%emt 00:00:01] [%clk 00:02:06]} 80. Rxg5
{[%emt 00:00:01] [%clk 00:06:00]} Kxg5 {[%clk 00:02:15]} 1/2-1/2

[Site "Europe Echecs"]

[Event "Championnat d'Europe Rapide"]
[Date "2024.12.07"]
[White "Magold, Filip"]
[Black "Lagarde, Maxime"]
[WhiteElo "2428"]
[BlackElo "2600"]
[Round "6.8"]
[Result "1-0"]
[TimeControl "900+10"]

1. d4 {[%emt 00:00:03] [%clk 00:15:16]} f5 {[%emt 00:00:04] [%clk 00:15:17]} 2.
Nf3 {[%emt 00:00:04] [%clk 00:15:21]} Nf6 {[%emt 00:00:02] [%clk 00:15:26]} 3.
g3 {[%emt 00:00:05] [%clk 00:15:26]} g6 {[%emt 00:00:01] [%clk 00:15:34]} 4. Bg2
{[%emt 00:00:02] [%clk 00:15:34]} Bg7 {[%emt 00:00:01] [%clk 00:15:43]} 5. O-O
{[%emt 00:00:03] [%clk 00:15:42]} O-O {[%emt 00:00:02] [%clk 00:15:51]} 6. c4
{[%emt 00:00:01] [%clk 00:15:50]} d6 {[%emt 00:00:02] [%clk 00:16:00]} 7. Nc3
{[%emt 00:00:03] [%clk 00:15:57]} Nc6 {[%emt 00:00:04] [%clk 00:16:06]} 8. b3
{[%emt 00:00:16] [%clk 00:15:52]} e5 {[%emt 00:00:05] [%clk 00:16:11]} 9. dxe5
{[%emt 00:00:03] [%clk 00:15:58]} dxe5 {[%emt 00:00:03] [%clk 00:16:18]} 10. Ba3
{[%emt 00:00:08] [%clk 00:16:00]} e4 {[%emt 00:00:03] [%clk 00:16:26]} 11. Bxf8
{[%emt 00:00:47] [%clk 00:15:22]} Qxf8 {[%emt 00:00:01] [%clk 00:16:34]} 12. Nd4
{[%emt 00:00:58] [%clk 00:14:35]} Nxd4 {[%emt 00:00:09] [%clk 00:16:35]} 13.
Qxd4 {[%emt 00:00:02] [%clk 00:14:43]} c6 {[%emt 00:00:02] [%clk 00:16:43]} 14.
Qd2 {[%emt 00:00:08] [%clk 00:14:43]} Be6 {[%emt 00:00:47] [%clk 00:16:07]} 15.
Rad1 {[%emt 00:00:22] [%clk 00:14:32]} Ng4 {[%emt 00:00:22] [%clk 00:15:55]} 16.
e3 {[%emt 00:00:20] [%clk 00:14:22]} Ne5 {[%emt 00:01:49] [%clk 00:14:16]} 17.
Ne2 {[%emt 00:00:14] [%clk 00:14:18]} a5 {[%emt 00:01:32] [%clk 00:12:54]} 18.
Qd6 {[%emt 00:00:56] [%clk 00:13:32]} Bf7 {[%emt 00:00:57] [%clk 00:12:06]} 19.
Nf4 {[%emt 00:00:34] [%clk 00:13:08]} Qxd6 {[%emt 00:00:54] [%clk 00:11:23]} 20.
Rxd6 {[%emt 00:00:02] [%clk 00:13:16]} Bf8 {[%emt 00:00:51] [%clk 00:10:42]} 21.
Rd2 {[%emt 00:00:38] [%clk 00:12:48]} Bb4 {[%emt 00:00:20] [%clk 00:10:32]} 22.
Rc2 {[%emt 00:00:16] [%clk 00:12:41]} a4 {[%emt 00:01:41] [%clk 00:09:02]} 23.
h4 {[%emt 00:00:07] [%clk 00:12:44]} axb3 {[%emt 00:00:54] [%clk 00:08:18]} 24.
axb3 {[%emt 00:00:01] [%clk 00:12:53]} Kf8 {[%emt 00:00:26] [%clk 00:08:02]} 25.
Rb1 {[%emt 00:00:56] [%clk 00:12:06]} Ke7 {[%emt 00:00:14] [%clk 00:07:58]} 26.
Rcc1 {[%emt 00:00:21] [%clk 00:11:56]} Ra3 {[%emt 00:00:10] [%clk 00:07:58]} 27.
Rd1 {[%emt 00:00:10] [%clk 00:11:56]} h5 {[%emt 00:01:41] [%clk 00:06:27]} 28.
Bf1 {[%emt 00:00:30] [%clk 00:11:35]} Nf3+ {[%emt 00:04:08] [%clk 00:02:29]} 29.
Kg2 {[%emt 00:00:07] [%clk 00:11:38]} Ne5 {[%emt 00:00:11] [%clk 00:02:29]} 30.
Ne2 {[%emt 00:00:19] [%clk 00:11:28]} Ng4 {[%emt 00:00:48] [%clk 00:01:51]} 31.
Rb2 {[%emt 00:02:17] [%clk 00:09:22]} Be6 {[%emt 00:00:56] [%clk 00:01:05]} 32.
Nc1 {[%emt 00:02:40] [%clk 00:06:52]} Bc5 {[%emt 00:00:31] [%clk 00:00:44]} 33.
Be2 {[%emt 00:00:13] [%clk 00:06:49]} Bxe3 {[%emt 00:00:37] [%clk 00:00:18]} 34.
fxe3 {[%emt 00:01:05] [%clk 00:05:54]} Nxe3+ {[%emt 00:00:01] [%clk 00:00:27]}
35. Kf2 {[%emt 00:00:02] [%clk 00:06:02]} Nxd1+ {[%emt 00:00:01] [%clk
00:00:36]} 36. Bxd1 {[%emt 00:00:01] [%clk 00:06:11]} Ra1 {[%emt 00:00:02] [%clk
00:00:44]} 37. Rc2 {[%clk 00:06:20]} Kf6 {[%emt 00:00:08] [%clk 00:00:47]} 38.
Ke3 {[%emt 00:00:07] [%clk 00:06:23]} Ke5 {[%emt 00:00:35] [%clk 00:00:22]} 39.
Be2 {[%emt 00:00:13] [%clk 00:06:20]} Rb1 {[%emt 00:00:12] [%clk 00:00:20]} 40.
Rc3 {[%emt 00:01:14] [%clk 00:05:16]} Rb2 {[%emt 00:00:03] [%clk 00:00:28]} 41.
c5 {[%emt 00:00:01] [%clk 00:05:24]} Bd5 {[%emt 00:00:09] [%clk 00:00:29]} 42.
Bc4 {[%emt 00:00:11] [%clk 00:05:23]} g5 {[%emt 00:00:12] [%clk 00:00:27]} 43.
Ne2 {[%emt 00:00:28] [%clk 00:05:04]} gxh4 {[%emt 00:00:02] [%clk 00:00:35]} 44.
gxh4 {[%clk 00:05:13]} Rb1 {[%emt 00:00:31] [%clk 00:00:15]} 45. Nf4 {[%emt
00:00:53] [%clk 00:04:30]} Bxc4 {[%emt 00:00:03] [%clk 00:00:22]} 46. bxc4
{[%emt 00:00:11] [%clk 00:04:29]} Re1+ {[%emt 00:00:04] [%clk 00:00:28]} 47. Kf2
{[%emt 00:01:35] [%clk 00:03:04]} Rh1 {[%emt 00:00:01] [%clk 00:00:37]} 48. Ng6+
{[%emt 00:00:06] [%clk 00:03:09]} Kd4 {[%emt 00:00:18] [%clk 00:00:28]} 49. Rb3
{[%emt 00:00:18] [%clk 00:03:01]} Rh2+ {[%emt 00:00:21] [%clk 00:00:16]} 50. Kg3
{[%emt 00:00:16] [%clk 00:02:55]} Rh1 {[%emt 00:00:01] [%clk 00:00:25]} 51. Kf2
{[%emt 00:00:16] [%clk 00:02:49]} Rh2+ {[%emt 00:00:11] [%clk 00:00:24]} 52. Kg3
{[%emt 00:00:01] [%clk 00:02:58]} Rh1 {[%emt 00:00:01] [%clk 00:00:34]} 53. Kg2
{[%emt 00:00:39] [%clk 00:02:29]} Ra1 {[%emt 00:00:10] [%clk 00:00:32]} 54. Rxb7
{[%emt 00:00:39] [%clk 00:02:02]} Ra2+ {[%emt 00:00:02] [%clk 00:00:39]} 55. Kg3
{[%emt 00:00:03] [%clk 00:02:10]} Ra3+ {[%emt 00:00:01] [%clk 00:00:49]} 56. Kf4
{[%emt 00:00:10] [%clk 00:02:09]} Rf3 {[%emt 00:00:04] [%clk 00:00:54]} 57. Kg5
{[%emt 00:00:01] [%clk 00:02:18]} Rf1 {[%emt 00:00:20] [%clk 00:00:44]} 58. Nf4
{[%emt 00:00:07] [%clk 00:02:21]} Kxc5 {[%emt 00:00:40] [%clk 00:00:15]} 59.
Kxf5 {[%emt 00:00:28] [%clk 00:02:03]} Rh1 {[%emt 00:00:04] [%clk 00:00:21]} 60.
Kg5 {[%emt 00:00:01] [%clk 00:02:12]} Kxc4 {[%emt 00:00:06] [%clk 00:00:25]} 61.
Kxh5 {[%emt 00:00:21] [%clk 00:02:01]} c5 {[%emt 00:00:12] [%clk 00:00:23]} 62.
Kg5 {[%emt 00:00:12] [%clk 00:01:58]} Rg1+ {[%emt 00:00:18] [%clk 00:00:15]} 63.
Kf5 {[%emt 00:00:02] [%clk 00:02:07]} e3 {[%emt 00:00:05] [%clk 00:00:21]} 64.
Re7 {[%emt 00:00:01] [%clk 00:02:15]} Rh1 {[%emt 00:00:07] [%clk 00:00:24]} 65.
h5 {[%emt 00:00:07] [%clk 00:02:18]} Kd4 {[%emt 00:00:06] [%clk 00:00:28]} 66.
Re4+ {[%emt 00:00:01] [%clk 00:02:26]} Kc3 {[%emt 00:00:02] [%clk 00:00:37]} 67.
Rxe3+ {[%emt 00:00:01] [%clk 00:02:34]} Kd2 {[%emt 00:00:07] [%clk 00:00:39]}
68. Rh3 {[%emt 00:00:42] [%clk 00:02:03]} Rxh3 {[%emt 00:00:04] [%clk 00:00:45]}
69. Nxh3 {[%emt 00:00:01] [%clk 00:02:12]} c4 {[%clk 00:00:55]} 70. Nf2 {[%emt
00:00:01] [%clk 00:02:21]} 1-0

[Site "Europe Echecs"]

[Event "Championnat d'Europe Rapide"]
[Date "2024.12.07"]
[White "Janik, Igor"]
[Black "Fedoseev, Vladimir"]
[WhiteElo "2515"]
[BlackElo "2709"]
[Round "6.9"]
[Result "0-1"]
[TimeControl "900+10"]

1. e4 {[%emt 00:01:16] [%clk 00:14:03]} c6 {[%emt 00:00:19] [%clk 00:15:01]} 2.
Nf3 {[%emt 00:00:02] [%clk 00:14:11]} d5 {[%emt 00:00:02] [%clk 00:15:10]} 3. d3
{[%clk 00:14:20]} f6 {[%emt 00:00:38] [%clk 00:14:42]} 4. Nbd2 {[%emt 00:03:00]
[%clk 00:11:30]} d4 {[%emt 00:01:59] [%clk 00:12:53]} 5. c3 {[%emt 00:01:18]
[%clk 00:10:22]} c5 {[%emt 00:00:55] [%clk 00:12:08]} 6. Nh4 {[%emt 00:00:48]
[%clk 00:09:44]} g6 {[%emt 00:00:34] [%clk 00:11:43]} 7. f4 {[%emt 00:00:06]
[%clk 00:09:48]} e5 {[%emt 00:01:36] [%clk 00:10:18]} 8. fxe5 {[%emt 00:01:58]
[%clk 00:08:00]} fxe5 {[%emt 00:00:01] [%clk 00:10:26]} 9. Nhf3 {[%clk
00:08:09]} Nc6 {[%emt 00:00:01] [%clk 00:10:35]} 10. Be2 {[%emt 00:00:07] [%clk
00:08:13]} Nh6 {[%emt 00:01:06] [%clk 00:09:39]} 11. Qb3 {[%emt 00:02:03] [%clk
00:06:19]} Nf7 {[%emt 00:00:25] [%clk 00:09:24]} 12. O-O {[%emt 00:00:02] [%clk
00:06:26]} Qe7 {[%emt 00:00:20] [%clk 00:09:15]} 13. Nc4 {[%emt 00:00:53] [%clk
00:05:43]} Be6 {[%emt 00:00:27] [%clk 00:08:59]} 14. Qa4 {[%emt 00:00:04] [%clk
00:05:49]} Bg7 {[%emt 00:01:28] [%clk 00:07:41]} 15. Nb6 {[%emt 00:01:36] [%clk
00:04:24]} Rd8 {[%emt 00:00:01] [%clk 00:07:49]} 16. Nd5 {[%emt 00:00:01] [%clk
00:04:33]} Bxd5 {[%emt 00:00:02] [%clk 00:07:57]} 17. exd5 {[%emt 00:00:01]
[%clk 00:04:42]} Rxd5 {[%emt 00:00:01] [%clk 00:08:05]} 18. Bd1 {[%emt 00:00:03]
[%clk 00:04:49]} dxc3 {[%emt 00:01:15] [%clk 00:07:00]} 19. bxc3 {[%emt
00:00:13] [%clk 00:04:46]} Rxd3 {[%emt 00:01:10] [%clk 00:05:59]} 20. Bb3 {[%emt
00:00:39] [%clk 00:04:17]} Nd6 {[%emt 00:01:49] [%clk 00:04:20]} 21. Bg5 {[%emt
00:00:22] [%clk 00:04:06]} Qd7 {[%clk 00:04:30]} 22. Rae1 {[%emt 00:00:16] [%clk
00:04:00]} c4 {[%emt 00:00:35] [%clk 00:04:05]} 23. Bxc4 {[%emt 00:00:29] [%clk
00:03:40]} Nxc4 {[%emt 00:00:07] [%clk 00:04:09]} 24. Qxc4 {[%clk 00:03:49]} Rd5
{[%emt 00:00:25] [%clk 00:03:53]} 25. Nd4 {[%emt 00:00:47] [%clk 00:03:12]} Rf8
{[%emt 00:00:21] [%clk 00:03:42]} 26. Nf3 {[%emt 00:00:26] [%clk 00:02:56]} Rf7
{[%emt 00:00:33] [%clk 00:03:19]} 27. Qh4 {[%emt 00:00:02] [%clk 00:03:03]} h5
{[%emt 00:00:02] [%clk 00:03:28]} 28. Qe4 {[%emt 00:00:20] [%clk 00:02:54]} Rd6
{[%emt 00:00:02] [%clk 00:03:36]} 29. Be3 {[%emt 00:00:31] [%clk 00:02:32]} Qg4
{[%emt 00:00:09] [%clk 00:03:38]} 30. Qb1 {[%emt 00:00:33] [%clk 00:02:09]} Qc4
{[%emt 00:00:28] [%clk 00:03:20]} 31. Bd4 {[%emt 00:00:05] [%clk 00:02:14]} Re7
{[%emt 00:00:06] [%clk 00:03:24]} 32. Nd2 {[%emt 00:00:40] [%clk 00:01:44]} Qd5
{[%emt 00:00:15] [%clk 00:03:18]} 33. Be3 {[%emt 00:00:19] [%clk 00:01:35]} e4
{[%emt 00:00:08] [%clk 00:03:20]} 34. Bf4 {[%emt 00:00:25] [%clk 00:01:21]} Rde6
{[%emt 00:00:11] [%clk 00:03:19]} 35. Qc1 {[%emt 00:00:35] [%clk 00:00:55]} e3
{[%emt 00:00:08] [%clk 00:03:21]} 36. Nf3 {[%emt 00:00:04] [%clk 00:01:02]} e2
{[%emt 00:00:11] [%clk 00:03:20]} 37. Rf2 {[%clk 00:01:11]} Qd3 {[%emt 00:00:38]
[%clk 00:02:52]} 38. Bg5 {[%emt 00:00:08] [%clk 00:01:14]} Bxc3 {[%emt 00:01:00]
[%clk 00:02:02]} 39. Bxe7 {[%emt 00:00:16] [%clk 00:01:07]} Nxe7 {[%emt
00:00:42] [%clk 00:01:30]} 40. Rexe2 {[%emt 00:00:27] [%clk 00:00:50]} Rxe2
{[%emt 00:00:02] [%clk 00:01:39]} 41. Rxe2 {[%emt 00:00:01] [%clk 00:00:59]}
Qxe2 {[%clk 00:01:48]} 42. Qxc3 {[%emt 00:00:01] [%clk 00:01:08]} Qxa2 {[%emt
00:00:10] [%clk 00:01:47]} 43. Qh8+ {[%emt 00:00:28] [%clk 00:00:50]} Kd7 {[%emt
00:00:15] [%clk 00:01:42]} 44. Qd4+ {[%emt 00:00:02] [%clk 00:00:58]} Kc8 {[%emt
00:00:18] [%clk 00:01:33]} 45. Qh8+ {[%emt 00:00:07] [%clk 00:01:02]} Qg8 {[%emt
00:00:05] [%clk 00:01:38]} 46. Qf6 {[%emt 00:00:06] [%clk 00:01:07]} Nc6 {[%emt
00:00:20] [%clk 00:01:27]} 47. h4 {[%emt 00:00:11] [%clk 00:01:06]} Qe8 {[%emt
00:00:08] [%clk 00:01:29]} 48. Qd6 {[%emt 00:00:21] [%clk 00:00:55]} a5 {[%emt
00:00:06] [%clk 00:01:33]} 49. Kf2 {[%emt 00:00:01] [%clk 00:01:04]} a4 {[%emt
00:00:06] [%clk 00:01:38]} 50. Nd2 {[%emt 00:00:07] [%clk 00:01:07]} Qd7 {[%emt
00:00:08] [%clk 00:01:39]} 51. Qf8+ {[%emt 00:00:02] [%clk 00:01:15]} Qd8 {[%clk
00:01:48]} 52. Qf4 {[%emt 00:00:02] [%clk 00:01:23]} Qd4+ {[%emt 00:00:02] [%clk
00:01:57]} 0-1

[Site "Europe Echecs"]